bitfinex/quotes_BTCUSD_20250614
["timestamp","ask_amount","ask_price","bid_price","bid_amount"]
[1749920145707,0.32658682,104590.0,104580.0,0.33282676]
[1749920146115,0.34212767,104590.0,104580.0,0.33382676]
[1749920147574,0.01056068,104590.0,104580.0,0.33382676]
[1749920147816,0.02012109,104590.0,104580.0,0.38931256]
[1749920148177,0.02012109,104590.0,104580.0,0.35294986]
[1749920148382,0.02968205,104590.0,104580.0,0.35294986]
[1749920148839,0.37924319,104590.0,104580.0,0.35294986]
[1749920150403,0.38880405,104590.0,104580.0,0.35294986]
[1749920150811,0.58002692,104590.0,104580.0,0.35294986]
[1749920151745,0.38880405,104590.0,104580.0,0.35294986]
[1749920151939,0.38880405,104590.0,104580.0,0.35046986]
[1749920153365,0.38880405,104590.0,104580.0,0.30146986]
[1749920153581,0.38880405,104590.0,104540.0,0.0651]
[1749920153582,0.34,104550.0,104540.0,0.0651]
[1749920153807,0.66120759,104550.0,104540.0,0.0651]
[1749920154005,0.68120759,104550.0,104540.0,0.0651]
[1749920154365,0.70995559,104550.0,104540.0,0.0651]
[1749920154777,0.71095559,104550.0,104540.0,0.14165648]
[1749920154979,0.70995559,104550.0,104540.0,0.14165648]
[1749920155221,0.76995559,104550.0,104540.0,0.14165648]
[1749920155431,0.76995559,104550.0,104540.0,0.1151]
[1749920155671,0.81682553,104550.0,104540.0,0.002]
[1749920155869,0.84557353,104550.0,104540.0,0.002]
[1749920156151,0.84557353,104550.0,104540.0,0.05]
[1749920156356,5.89557353,104550.0,104540.0,0.05]
[1749920156595,5.89557353,104550.0,104540.0,0.052]
[1749920157550,5.89557353,104550.0,104540.0,0.051]
[1749920158146,0.22003113,104530.0,104520.0,0.0626]
[1749920158332,0.21046524,104530.0,104520.0,0.11164794]
[1749920158537,0.21046524,104530.0,104520.0,0.12121548]
[1749920158741,0.32124785,104530.0,104520.0,0.08064794]
[1749920159050,0.32124785,104530.0,104520.0,0.04904794]
[1749920159270,0.68741682,104530.0,104520.0,0.04904794]
[1749920159489,0.66124785,104530.0,104520.0,0.05304794]
[1749920159690,0.69045704,104530.0,104520.0,0.05304794]
[1749920160109,0.69045704,104530.0,104520.0,0.05704794]
[1749920160316,0.71045704,104530.0,104520.0,0.05704794]
[1749920160511,5.7930885,104530.0,104520.0,0.05704794]
[1749920161092,5.7930885,104530.0,104520.0,0.00804794]
[1749920161295,5.7930885,104530.0,104520.0,4.794e-05]
[1749920161686,5.7930885,104530.0,104520.0,0.00304794]
[1749920161879,5.7930885,104530.0,104520.0,0.00204794]
[1749920162103,5.7930885,104530.0,104520.0,4.794e-05]
[1749920162322,5.7940885,104530.0,104520.0,4.794e-05]
[1749920162525,0.7440885,104530.0,104520.0,0.00104794]
[1749920164499,0.5518883,104530.0,104520.0,0.27413331]
[1749920164709,0.73365504,104530.0,104520.0,0.27413341]
[1749920164914,0.72408887,104530.0,104520.0,0.27413341]
[1749920165118,0.73365476,104530.0,104520.0,0.27413341]
[1749920165542,0.73365476,104530.0,104520.0,0.28370049]
[1749920165880,0.55188876,104530.0,104520.0,0.28370049]
[1749920166070,0.55188876,104530.0,104520.0,0.34230748]
[1749920166265,0.74322139,104530.0,104520.0,0.34230748]
[1749920166915,0.40284065,104530.0,104520.0,0.42324257]
[1749920167120,0.43153897,104530.0,104520.0,0.35187438]
[1749920168086,0.44110505,104530.0,104520.0,0.35187438]
[1749920168281,0.4315387,104530.0,104520.0,0.35187438]
[1749920168511,0.42197244,104530.0,104520.0,0.35187438]
[1749920168865,0.44110505,104530.0,104520.0,0.35187438]
[1749920169072,0.43153861,104530.0,104520.0,0.35187438]
[1749920169286,0.03020919,104530.0,104520.0,0.35187438]
[1749920169494,0.001,104530.0,104520.0,0.35187438]
[1749920170626,0.001,104530.0,104520.0,1.03235044]
[1749920170824,0.001,104530.0,104520.0,0.30283438]
[1749920171027,0.56,104510.0,104500.0,0.45449916]
[1749920171233,0.45537748,104510.0,104500.0,0.52626789]
[1749920171442,0.57461408,104510.0,104500.0,0.49756125]
[1749920171656,0.56504636,104510.0,104500.0,0.29660442]
[1749920171858,0.56504636,104510.0,104500.0,0.30617379]
[1749920172240,0.56504636,104510.0,104500.0,0.44860134]
[1749920172518,0.56504636,104510.0,104500.0,0.46117062]
[1749920172721,0.54591009,104510.0,104500.0,0.47757379]
[1749920172875,0.54591009,104510.0,104500.0,0.67853062]
[1749920173067,0.54591009,104510.0,104500.0,0.76848258]
[1749920173270,0.54591009,104510.0,104500.0,0.77805159]
[1749920173621,0.55547836,104510.0,104500.0,0.77805159]
[1749920173917,0.55547836,104510.0,104500.0,0.77705177]
[1749920174217,0.55547836,104510.0,104500.0,0.77805177]
[1749920174424,0.57461473,104510.0,104500.0,0.55865177]
[1749920174636,0.56504673,104510.0,104500.0,0.68813981]
[1749920174808,0.56504673,104510.0,104500.0,0.45917062]
[1749920175012,0.55547846,104510.0,104500.0,0.67857053]
[1749920175237,0.55547846,104510.0,104500.0,0.68813963]
[1749920176170,0.55547846,104510.0,104500.0,0.46804442]
[1749920176385,0.54591009,104510.0,104500.0,0.24864442]
[1749920176584,0.54591009,104510.0,104500.0,0.47761379]
[1749920176795,0.54591009,104510.0,104500.0,0.67857062]
[1749920177237,0.54591009,104510.0,104500.0,0.25821379]
[1749920177419,0.54591009,104510.0,104500.0,0.47761379]
[1749920177618,0.54591009,104510.0,104500.0,0.45917062]
[1749920177764,0.54591009,104510.0,104500.0,0.68809981]
[1749920178604,0.54591009,104510.0,104500.0,0.55865172]
[1749920178806,0.54591009,104510.0,104500.0,0.68809981]
[1749920179897,0.54591009,104510.0,104500.0,0.46873981]
[1749920180059,0.54591009,104510.0,104500.0,0.68809981]
[1749920181544,0.54591009,104510.0,104500.0,0.66896134]
[1749920181746,0.54591009,104510.0,104500.0,0.67853053]
[1749920181991,0.54591009,104510.0,104500.0,0.45917053]
[1749920182208,0.56860421,104510.0,104500.0,0.67853053]
[1749920182818,0.62860421,104510.0,104500.0,0.67853053]
[1749920183055,0.62860421,104510.0,104500.0,0.76748551]
[1749920183268,0.63817258,104510.0,104500.0,0.77705452]
[1749920183477,0.65730913,104510.0,104500.0,0.78662344]
[1749920183692,0.65730913,104510.0,104500.0,0.69766846]
[1749920184356,0.65730913,104510.0,104500.0,0.68809954]
[1749920184562,0.65730913,104510.0,104500.0,0.68809963]
[1749920184791,0.65730913,104510.0,104500.0,0.69766864]
[1749920185871,0.45637143,104510.0,104500.0,0.70723737]
[1749920186003,0.65730913,104510.0,104500.0,0.70723756]
[1749920186595,0.43226194,104510.0,104500.0,0.79714933]
[1749920186798,0.08269412,104510.0,104500.0,0.70723692]
[1749920187009,0.06,104510.0,104500.0,0.70723692]
[1749920187663,0.04190134,104520.0,104510.0,0.28117352]
[1749920187865,0.04190134,104520.0,104510.0,0.37092381]
[1749920188039,0.03233435,104520.0,104510.0,0.37092381]
[1749920188244,0.05146843,104520.0,104510.0,0.37092381]
[1749920188602,0.03233435,104520.0,104510.0,0.37092381]
[1749920188749,0.03233435,104520.0,104510.0,0.64672381]
[1749920188932,0.03433435,104520.0,104510.0,0.64672381]
[1749920189129,0.03433426,104520.0,104510.0,0.64672381]
[1749920189331,0.02476754,104520.0,104510.0,0.64672381]
[1749920189556,0.03433435,104520.0,104510.0,0.64672381]
[1749920189802,0.03533426,104520.0,104510.0,0.64672381]
[1749920190134,0.02576754,104520.0,104510.0,0.64672381]
[1749920190324,0.02276754,104520.0,104510.0,0.64672381]
[1749920190566,0.03233426,104520.0,104510.0,0.64672381]
[1749920190781,0.03233426,104520.0,104510.0,0.64772381]
[1749920190996,0.47210672,104530.0,104520.0,0.28115273]
[1749920191204,0.47210672,104530.0,104520.0,0.48795338]
[1749920191587,0.53210617,104530.0,104520.0,0.48795338]
[1749920191788,0.19210599,104530.0,104520.0,0.48795338]
[1749920192208,0.15843326,104530.0,104520.0,0.46107963]
[1749920192396,0.17956532,104530.0,104520.0,0.46107963]
[1749920192838,0.19013158,104530.0,104520.0,0.46107963]
[1749920193318,0.19013176,104530.0,104520.0,0.46107963]
[1749920193518,0.16736422,104530.0,104520.0,0.46107963]
[1749920193925,0.16736413,104530.0,104520.0,0.46107963]
[1749920194342,0.17693057,104530.0,104520.0,0.46107963]
[1749920196443,0.18649711,104530.0,104520.0,0.46107963]
[1749920197074,0.17693057,104530.0,104520.0,0.46107963]
[1749920197706,0.18649711,104530.0,104520.0,0.46107963]
[1749920197914,0.37782974,104530.0,104520.0,0.45151273]
[1749920198124,0.17693122,104530.0,104520.0,0.45151273]
[1749920198349,0.17693122,104530.0,104520.0,0.46107963]
[1749920198560,0.17693122,104530.0,104520.0,0.51003963]
[1749920198771,0.18649785,104530.0,104520.0,0.51003963]
[1749920199441,0.17693122,104530.0,104520.0,0.51003963]
[1749920200087,0.16736468,104530.0,104520.0,0.51003963]
[1749920201083,0.17693122,104530.0,104520.0,0.51003963]
[1749920201285,0.16736468,104530.0,104520.0,0.51003963]
[1749920202275,0.17693122,104530.0,104520.0,0.51003963]
[1749920203312,0.18649785,104530.0,104520.0,0.78579963]
[1749920203719,0.11087991,104530.0,104520.0,0.78579963]
[1749920204135,0.09174674,104530.0,104520.0,0.66262885]
[1749920204391,0.09174674,104530.0,104520.0,0.88170885]
[1749920204559,0.09174674,104530.0,104520.0,0.78555963]
[1749920204824,0.10131328,104530.0,104520.0,0.78555963]
[1749920205231,0.29264637,104530.0,104520.0,0.76642574]
[1749920205437,0.34913152,104530.0,104520.0,0.33686]
[1749920205636,0.36367237,104530.0,104520.0,0.49484]
[1749920205846,0.36367237,104530.0,104510.0,0.26074179]
[1749920206060,0.01913627,104510.0,104500.0,0.45997026]
[1749920206285,0.01913627,104510.0,104500.0,0.69814791]
[1749920206483,0.02870464,104510.0,104500.0,0.69814791]
[1749920206696,0.0382731,104510.0,104500.0,0.68857918]
[1749920207032,0.02870464,104510.0,104500.0,0.698148]
[1749920207247,0.01913627,104510.0,104500.0,0.53751673]
[1749920207460,0.01913627,104510.0,104500.0,0.70771673]
[1749920208261,0.01913572,104510.0,104500.0,0.70971673]
[1749920208458,0.02870399,104510.0,104500.0,0.70971673]
[1749920208665,0.00956772,104510.0,104500.0,0.70971673]
[1749920208868,0.02870363,104510.0,104500.0,0.70971673]
[1749920209341,0.02870363,104510.0,104500.0,0.71171673]
[1749920209604,0.37728838,104520.0,104510.0,0.28547379]
[1749920209810,0.02280169,104530.0,104520.0,0.28545246]
[1749920210034,4.778e-05,104530.0,104520.0,0.45565246]
[1749920210241,0.01917966,104530.0,104520.0,0.45565246]
[1749920210871,0.28613023,104530.0,104520.0,0.0654]
[1749920211073,0.37778096,104530.0,104520.0,0.21904]
[1749920211292,0.43778096,104530.0,104520.0,0.21904]
[1749920211497,0.43978096,104530.0,104520.0,0.21904]
[1749920211864,0.77978096,104530.0,104520.0,0.41039093]
[1749920212070,0.77978096,104530.0,104520.0,0.41995847]
[1749920212307,0.77978096,104530.0,104520.0,0.21904]
[1749920212534,0.78078096,104530.0,104520.0,0.41995847]
[1749920212732,0.80354557,104530.0,104520.0,0.41995847]
[1749920213137,0.80354557,104530.0,104520.0,0.42952592]
[1749920213577,0.80354557,104530.0,104520.0,0.46202592]
[1749920214735,0.80354557,104530.0,104520.0,0.50339328]
[1749920215973,0.80354557,104530.0,104520.0,0.49382592]
[1749920216170,0.80354557,104530.0,104520.0,0.50339319]
[1749920216396,0.80354557,104530.0,104520.0,0.50339328]
[1749920217273,0.80354557,104530.0,104520.0,0.51296055]
[1749920218801,0.80354557,104530.0,104520.0,0.52252773]
[1749920219338,0.61221294,104530.0,104520.0,0.52004773]
[1749920219543,0.74706024,104530.0,104520.0,0.51048019]
[1749920219776,0.74706024,104530.0,104520.0,0.52004727]
[1749920221717,0.75662687,104530.0,104520.0,0.52004727]
[1749920221945,0.44494445,104530.0,104520.0,0.54052154]
[1749920222151,0.45451053,104530.0,104520.0,0.54052154]
[1749920222350,0.44131227,104530.0,104520.0,0.54052154]
[1749920222553,0.44131227,104530.0,104520.0,0.52004672]
[1749920222769,0.42217966,104530.0,104520.0,0.52004672]
[1749920222908,0.06304778,104530.0,104520.0,0.52004672]
[1749920223175,0.00304778,104530.0,104520.0,0.52004672]
[1749920226274,0.03174628,104530.0,104520.0,0.52240672]
[1749920226495,0.03174619,104530.0,104520.0,0.52240672]
[1749920226699,0.02217984,104530.0,104520.0,0.52240672]
[1749920227110,0.03174619,104530.0,104520.0,0.52240672]
[1749920227314,0.04131263,104530.0,104520.0,0.52240672]
[1749920227522,0.03174619,104530.0,104520.0,0.52240672]
[1749920227723,0.39087917,104530.0,104520.0,0.52240681]
[1749920227926,0.39087917,104530.0,104520.0,0.52240635]
[1749920228135,0.38131263,104530.0,104520.0,0.52240635]
[1749920230628,0.2423545,104540.0,104520.0,0.5224058]
[1749920230842,0.23411545,104540.0,104530.0,0.04868]
[1749920231255,0.23411545,104540.0,104530.0,0.05824663]
[1749920231885,0.23711545,104540.0,104530.0,0.05824663]
[1749920232688,0.23711545,104540.0,104530.0,0.04868]
[1749920233131,0.23411545,104540.0,104530.0,0.04868]
[1749920233494,0.23511545,104540.0,104530.0,0.04868]
[1749920234174,0.57511545,104540.0,104530.0,0.04868]
[1749920234376,0.59989535,104540.0,104530.0,0.04868]
[1749920234797,0.59789535,104540.0,104530.0,0.04868]
[1749920235225,0.59889535,104540.0,104530.0,0.04868]
[1749920236217,0.59889535,104540.0,104530.0,0.24001263]
[1749920236424,0.41714522,104540.0,104530.0,0.34177805]
[1749920236625,0.60481079,104540.0,104530.0,0.33221206]
[1749920236830,0.28759069,104540.0,104530.0,0.33221206]
[1749920237035,0.60481079,104540.0,104530.0,0.33221206]
[1749920237449,0.60481079,104540.0,104530.0,0.33221215]
[1749920237856,0.60481079,104540.0,104530.0,0.34177841]
[1749920237857,0.59026985,104540.0,104530.0,0.34177841]
[1749920238310,0.59026985,104540.0,104530.0,0.35134458]
[1749920238519,0.61305708,104540.0,104530.0,0.52130458]
[1749920238728,0.42174276,104540.0,104530.0,0.52130394]
[1749920238942,0.39895553,104540.0,104530.0,0.52130394]
[1749920239562,0.39895553,104540.0,104530.0,0.51173795]
[1749920239770,0.40852124,104540.0,104530.0,0.51173795]
[1749920239974,0.40852124,104540.0,104530.0,0.52130403]
[1749920240180,0.59983556,104540.0,104530.0,0.51173795]
[1749920240408,0.05718142,104560.0,104550.0,0.28178933]
[1749920240619,0.17397999,104570.0,104560.0,0.23174143]
[1749920240827,0.17397999,104570.0,104560.0,0.07958]
[1749920240828,0.36538289,104570.0,104560.0,0.07958]
[1749920241041,0.21040485,104560.0,104550.0,0.27222517]
[1749920241249,0.36869045,104560.0,104550.0,0.28178933]
[1749920241517,0.36869045,104560.0,104550.0,0.50038933]
[1749920241720,0.36869045,104560.0,104550.0,0.50138933]
[1749920242332,0.36869045,104560.0,104550.0,0.50238933]
[1749920242554,0.3782536,104560.0,104550.0,0.50238933]
[1749920243380,0.37825351,104560.0,104550.0,0.50238933]
[1749920244015,0.38781721,104560.0,104550.0,0.50238933]
[1749920244420,0.37825351,104560.0,104550.0,0.50238933]
[1749920245001,0.38781721,104560.0,104550.0,0.50238933]
[1749920245203,0.37825351,104560.0,104550.0,0.50238933]
[1749920247070,0.3878173,104560.0,104550.0,0.50238933]
[1749920247274,0.38781721,104560.0,104550.0,0.50238933]
[1749920247653,0.37825351,104560.0,104550.0,0.50238933]
[1749920249154,0.38781721,104560.0,104550.0,0.50238933]
[1749920250545,0.3686899,104560.0,104550.0,0.50238933]
[1749920250759,0.38781721,104560.0,104550.0,0.50238933]
[1749920251214,0.38781785,104560.0,104550.0,0.50238933]
[1749920251848,0.36869027,104560.0,104550.0,0.50238933]
[1749920252062,0.37825397,104560.0,104550.0,0.28378933]
[1749920252278,0.36869027,104560.0,104550.0,0.50226933]
[1749920252494,0.56953225,104560.0,104550.0,0.49270535]
[1749920252709,0.56953225,104560.0,104550.0,0.50226969]
[1749920253138,0.56953225,104560.0,104550.0,0.51183394]
[1749920253560,0.56953225,104560.0,104550.0,0.50226969]
[1749920253821,0.56953225,104560.0,104550.0,0.28378969]
[1749920254020,0.56953225,104560.0,104550.0,0.49266535]
[1749920254272,0.55996883,104560.0,104550.0,0.50222987]
[1749920254486,0.55996883,104560.0,104550.0,0.5117943]
[1749920254923,0.55996883,104560.0,104550.0,0.52135855]
[1749920255171,0.66109538,104560.0,104550.0,0.05068]
[1749920255401,0.82678437,104560.0,104550.0,0.05068]
[1749920256305,0.82678437,104560.0,104550.0,0.04968]
[1749920256531,0.82778437,104560.0,104550.0,0.04968]
[1749920257404,0.68493515,104560.0,104550.0,0.04968]
[1749920258340,0.68493515,104560.0,104550.0,0.04868]
[1749920258550,0.68593515,104560.0,104550.0,0.04868]
[1749920258754,0.55540168,104550.0,104540.0,0.4629948]
[1749920258963,0.55540168,104550.0,104540.0,0.5116748]
[1749920259174,0.55540168,104550.0,104540.0,0.3419548]
[1749920259591,0.37366962,104550.0,104540.0,0.3419548]
[1749920259805,0.38323423,104550.0,104540.0,0.4227772]
[1749920260015,0.38323341,104550.0,104540.0,0.4227772]
[1749920260252,0.38323341,104550.0,104540.0,0.4237772]
[1749920261582,0.39279802,104550.0,104540.0,0.4237772]
[1749920261797,0.39279793,104550.0,104540.0,0.4237772]
[1749920262235,0.38323341,104550.0,104540.0,0.4237772]
[1749920262456,0.35912822,104550.0,104540.0,0.4247772]
[1749920262691,0.34956397,104550.0,104540.0,0.35351987]
[1749920262917,0.35912822,104550.0,104540.0,0.35351987]
[1749920263158,0.34,104550.0,104540.0,0.35351987]
[1749920263384,0.47947325,104560.0,104550.0,0.28498933]
[1749920263611,0.47947325,104560.0,104550.0,0.38812058]
[1749920264053,0.47947325,104560.0,104550.0,0.33350933]
[1749920265178,0.48147325,104560.0,104550.0,0.33350933]
[1749920265679,0.50425418,104560.0,104550.0,0.33350933]
[1749920265904,0.50325418,104560.0,104550.0,0.33350933]
[1749920266132,0.70309579,104560.0,104550.0,0.33350951]
[1749920266374,0.70309579,104560.0,104550.0,0.34407376]
[1749920266552,0.70309579,104560.0,104550.0,0.34507376]
[1749920266822,0.70309579,104560.0,104550.0,0.32594517]
[1749920267269,0.70309579,104560.0,104550.0,0.33550951]
[1749920267931,0.70309579,104560.0,104550.0,0.32594516]
[1749920268142,0.70309579,104560.0,104550.0,0.33550959]
[1749920268777,0.70309579,104560.0,104550.0,0.34507393]
[1749920269218,0.69353246,104560.0,104550.0,0.33550959]
[1749920269661,0.69353246,104560.0,104550.0,0.34507393]
[1749920270113,0.69353246,104560.0,104550.0,0.33550959]
[1749920270839,0.68396885,104560.0,104550.0,0.33550959]
[1749920271737,0.68396885,104560.0,104550.0,0.32594516]
[1749920272183,0.68396885,104560.0,104550.0,0.33550959]
[1749920273159,0.68396885,104560.0,104550.0,0.32594516]
[1749920273595,0.67440515,104560.0,104550.0,0.32594516]
[1749920274013,20.66484127,104560.0,104550.0,0.31638064]
[1749920274421,20.66484127,104560.0,104550.0,0.31638083]
[1749920276739,20.66484127,104560.0,104550.0,0.1250848]
[1749920277174,20.66484127,104560.0,104550.0,0.0342]
[1749920277393,20.76989959,104560.0,104550.0,0.05048]
[1749920277874,20.67375037,104560.0,104550.0,0.05048]
[1749920278129,25.75218449,104560.0,104550.0,0.002]
[1749920278375,25.85694436,104560.0,104550.0,0.002]
[1749920278609,25.85694369,104560.0,104550.0,0.002]
[1749920280217,25.85701082,104560.0,104550.0,0.002]
[1749920280452,25.85700346,104560.0,104550.0,0.002]
[1749920280663,26.15315268,104560.0,104550.0,0.002]
[1749920281744,26.05700346,104560.0,104550.0,0.002]
[1749920281954,26.01894359,104560.0,104550.0,0.002]
[1749920282391,26.05700346,104560.0,104550.0,0.002]
[1749920283231,26.05700107,104560.0,104550.0,0.002]
[1749920283658,26.05700109,104560.0,104550.0,0.002]
[1749920284533,26.15315031,104560.0,104550.0,0.002]
[1749920285389,26.11509044,104560.0,104550.0,0.002]
[1749920285802,26.01654122,104560.0,104550.0,0.002]
[1749920286239,26.01653932,104560.0,104550.0,0.002]
[1749920286775,25.96525684,104560.0,104550.0,0.002]
[1749920287907,25.91855684,104560.0,104550.0,0.002]
[1749920288425,25.91855684,104560.0,104550.0,0.0664]
[1749920288838,25.91855639,104560.0,104550.0,0.0664]
[1749920289045,25.91855639,104560.0,104550.0,0.0345]
[1749920291705,25.91855639,104560.0,104550.0,0.02492655]
[1749920292162,25.90966034,104560.0,104550.0,0.0153531]
[1749920292367,0.55540149,104550.0,104540.0,0.04852]
[1749920292574,0.65164325,104550.0,104540.0,0.04852]
[1749920292776,0.65164325,104550.0,104540.0,0.07982]
[1749920293725,0.65164325,104550.0,104540.0,0.08282]
[1749920294122,0.56496601,104550.0,104540.0,0.08282]
[1749920294385,0.55540149,104550.0,104540.0,0.08482]
[1749920295175,0.55540149,104550.0,104540.0,0.11682]
[1749920299862,0.58414749,104550.0,104540.0,0.11682]
[1749920300987,0.77653847,104550.0,104540.0,0.11658]
[1749920301293,0.77653847,104550.0,104540.0,0.0683]
[1749920301445,0.78545062,104550.0,104540.0,0.11658]
[1749920301653,0.48576807,104550.0,104540.0,0.11658]
[1749920301854,0.48642075,104550.0,104540.0,0.11658]
[1749920302278,0.67771678,104550.0,104540.0,0.11658]
[1749920305586,0.68662868,104550.0,104540.0,0.11658]
[1749920305786,0.67771678,104550.0,104540.0,0.11658]
[1749920305991,0.68662887,104550.0,104540.0,0.11658]
[1749920306203,0.67771678,104550.0,104540.0,0.11658]
[1749920306420,0.78277814,104550.0,104540.0,0.11658]
[1749920307006,0.68662892,104550.0,104540.0,0.11658]
[1749920307204,0.68662892,104550.0,104540.0,0.08458]
[1749920308163,0.68662905,104550.0,104540.0,0.0363]
[1749920308364,0.68662905,104550.0,104540.0,0.08458]
[1749920308564,0.68662903,104550.0,104540.0,0.08458]
[1749920309161,0.68662903,104550.0,104540.0,0.11548]
[1749920309752,0.67771678,104550.0,104540.0,0.11548]
[1749920312751,0.67771678,104550.0,104540.0,0.35086769]
[1749920312951,0.67771678,104550.0,104540.0,0.31635994]
[1749920313327,0.67771678,104550.0,104540.0,0.12504571]
[1749920313667,0.67771678,104550.0,104540.0,0.32592547]
[1749920314077,0.67771678,104550.0,104540.0,0.33549082]
[1749920314778,0.67771678,104550.0,104540.0,0.34505607]
[1749920316630,0.58147502,104550.0,104540.0,0.34505607]
[1749920318116,0.368746,104550.0,104540.0,0.42516796]
[1749920318576,0.34,104550.0,104540.0,0.42516796]
[1749920318785,20.05743337,104560.0,104550.0,0.28208933]
[1749920318995,20.38786976,104560.0,104550.0,0.28208933]
[1749920319206,20.39743346,104560.0,104550.0,0.28208933]
[1749920319414,20.0,104560.0,104550.0,0.32816655]
[1749920319644,20.35912639,104560.0,104550.0,0.49716655]
[1749920319848,20.36868981,104560.0,104550.0,0.49716655]
[1749920320059,20.36868981,104560.0,104550.0,0.45208933]
[1749920320264,20.36868981,104560.0,104550.0,0.45308933]
[1749920320991,20.35912639,104560.0,104550.0,0.45308933]
[1749920323032,20.34956306,104560.0,104550.0,0.45308933]
[1749920323474,20.3591263,104560.0,104550.0,0.28408933]
[1749920323670,20.36868972,104560.0,104550.0,0.28408933]
[1749920324119,20.34956306,104560.0,104550.0,0.3552667]
[1749920324326,20.35912639,104560.0,104550.0,0.28408933]
[1749920324528,20.34956306,104560.0,104550.0,0.28408933]
[1749920324748,20.3591263,104560.0,104550.0,0.28408933]
[1749920324959,20.36868963,104560.0,104550.0,0.28408933]
[1749920327083,20.19244862,104560.0,104550.0,0.28408933]
[1749920327294,20.19244862,104560.0,104550.0,0.3552667]
[1749920327498,19.82375899,104560.0,104550.0,0.3552667]
[1749920329569,19.82375899,104560.0,104550.0,1.03574276]
[1749920330546,19.82375899,104560.0,104550.0,1.13198452]
[1749920336803,19.82375899,104560.0,104550.0,1.18002452]
[1749920337214,19.82375899,104560.0,104550.0,0.66830846]
[1749920337621,19.8750092,104560.0,104550.0,0.66830846]
[1749920337846,19.82375899,104560.0,104550.0,0.66830846]
[1749920339136,19.82375899,104560.0,104550.0,0.59713109]
[1749920340659,19.85244954,104560.0,104550.0,0.33212933]
[1749920340874,20.04372727,104560.0,104550.0,0.28408969]
[1749920341092,20.03416403,104560.0,104550.0,0.002]
[1749920341299,20.03416403,104560.0,104550.0,0.05004]
[1749920343573,20.09416403,104560.0,104550.0,0.05004]
[1749920344217,20.09416403,104560.0,104550.0,0.25090083]
[1749920344875,20.09416403,104560.0,104550.0,0.28370083]
[1749920345087,20.08460051,104560.0,104550.0,0.28370083]
[1749920345300,20.08460051,104560.0,104550.0,0.0924048]
[1749920345514,20.08460051,104560.0,104550.0,0.08284]
[1749920345934,20.08460051,104560.0,104550.0,0.28370074]
[1749920346372,20.08460051,104560.0,104550.0,0.29326535]
[1749920346571,20.08460051,104560.0,104550.0,0.08284]
[1749920347007,20.07503672,104560.0,104550.0,0.08284]
[1749920347217,20.07503672,104560.0,104550.0,0.0924048]
[1749920347894,20.08460042,104560.0,104550.0,0.4140031]
[1749920348334,19.92201378,104560.0,104550.0,0.42356735]
[1749920348529,20.11329151,104560.0,104550.0,0.42356735]
[1749920349040,20.11329151,104560.0,104550.0,0.4140031]
[1749920349222,20.11329151,104560.0,104550.0,0.33522969]
[1749920350743,19.87835248,104560.0,104550.0,0.33522969]
[1749920350989,19.67751087,104560.0,104550.0,0.3543581]
[1749920351201,19.64881996,104560.0,104550.0,0.3543581]
[1749920351414,19.65838302,104560.0,104550.0,0.3543581]
[1749920351625,19.65838302,104560.0,104550.0,0.45050732]
[1749920351833,19.66546626,104560.0,104550.0,0.45050732]
[1749920352046,19.65590302,104560.0,104550.0,0.45050732]
[1749920352252,19.66546626,104560.0,104550.0,0.45050732]
[1749920352458,19.65590302,104560.0,104550.0,0.45050732]
[1749920353087,19.59590302,104560.0,104550.0,0.45050732]
[1749920354545,19.58633996,104560.0,104550.0,0.45050732]
[1749920358014,19.58633996,104560.0,104550.0,1.13098338]
[1749920358217,19.58633996,104560.0,104550.0,1.22722514]
[1749920358805,19.58633996,104560.0,104550.0,0.54674908]
[1749920360506,19.58633996,104560.0,104550.0,1.22722514]
[1749920361064,19.58633996,104560.0,104550.0,0.54674908]
[1749920361493,19.58633996,104560.0,104550.0,1.22722514]
[1749920363168,19.58633996,104560.0,104550.0,1.24629531]
[1749920364012,19.58633996,104560.0,104550.0,1.22722514]
[1749920365643,19.58633996,104560.0,104550.0,0.54674908]
[1749920365860,19.58633996,104560.0,104550.0,0.82238908]
[1749920366309,19.58633996,104560.0,104550.0,0.72623986]
[1749920366530,19.58633996,104560.0,104550.0,0.72523986]
[1749920366976,19.58633996,104560.0,104550.0,0.72923986]
[1749920367209,19.58633996,104560.0,104550.0,1.40871592]
[1749920367429,19.58633996,104560.0,104550.0,1.41371592]
[1749920367645,19.58633996,104560.0,104550.0,1.50986514]
[1749920376499,19.58633996,104560.0,104550.0,1.67806514]
[1749920396627,19.58633996,104560.0,104550.0,0.62499986]
[1749920396846,19.58633996,104560.0,104550.0,0.59259986]
[1749920397059,19.58633996,104560.0,104550.0,0.62389986]
[1749920398411,19.40467706,104560.0,104550.0,0.62389986]
[1749920400349,19.40467706,104560.0,104550.0,0.37715986]
[1749920400576,19.40467706,104560.0,104550.0,0.4635181]
[1749920401251,19.46377706,104560.0,104550.0,0.4635181]
[1749920401943,19.40467706,104560.0,104550.0,0.4635181]
[1749920402393,19.41424021,104560.0,104550.0,0.2481181]
[1749920402613,19.43717706,104560.0,104550.0,0.2956381]
[1749920402867,19.44674021,104560.0,104550.0,0.2481181]
[1749920403092,19.44674021,104560.0,104550.0,0.28607394]
[1749920403093,19.81334021,104560.0,104550.0,0.28607394]
[1749920403324,20.02374506,104560.0,104550.0,0.27650978]
[1749920404453,20.02374506,104560.0,104550.0,0.28607403]
[1749920404670,20.02374506,104560.0,104550.0,0.27650978]
[1749920405142,20.01418191,104560.0,104550.0,0.26694544]
[1749920405354,20.01418191,104560.0,104550.0,0.20986055]
[1749920405589,20.01418191,104560.0,104550.0,0.27650969]
[1749920406297,20.01418191,104560.0,104550.0,0.57854883]
[1749920406298,19.40467706,104560.0,104550.0,0.57854883]
[1749920406520,19.40467706,104560.0,104550.0,1.26858905]
[1749920406758,19.40467706,104560.0,104550.0,0.58811299]
[1749920407002,19.40467706,104560.0,104550.0,1.43646905]
[1749920407460,19.40467706,104560.0,104550.0,1.21706905]
[1749920407692,19.40467706,104560.0,104550.0,1.43546905]
[1749920407907,19.40467706,104560.0,104550.0,1.43046905]
[1749920408116,19.40467706,104560.0,104550.0,1.43446905]
[1749920408328,19.21415359,104560.0,104550.0,1.43446905]
[1749920409007,19.21415359,104560.0,104550.0,1.14345111]
[1749920409222,19.21415359,104560.0,104550.0,1.35881111]
[1749920409436,19.21415359,104560.0,104550.0,0.58045561]
[1749920409679,19.21415359,104560.0,104550.0,1.26089167]
[1749920409892,19.21415359,104560.0,104550.0,1.04557167]
[1749920410123,19.21415359,104560.0,104550.0,1.22859167]
[1749920410997,19.21415359,104560.0,104550.0,1.00927167]
[1749920411210,19.24665359,104560.0,104550.0,0.44987385]
[1749920411862,19.21415359,104560.0,104550.0,1.12734991]
[1749920412076,19.21415359,104560.0,104550.0,1.22549913]
[1749920412303,19.21415359,104560.0,104550.0,0.94422991]
[1749920412516,19.21415359,104560.0,104550.0,1.15950991]
[1749920415953,19.21415359,104560.0,104550.0,1.19140991]
[1749920419457,19.21415359,104560.0,104550.0,1.18868991]
[1749920419668,19.21415359,104560.0,104550.0,1.28483913]